bitfinex/quotes_SOLUSD_20250118
["timestamp","ask_amount","ask_price","bid_price","bid_amount"]
[1737217833743,0.42446198,253.63,253.54,0.59152744]
[1737217834261,0.42446198,253.63,253.51,31.35012404]
[1737217834468,0.42446198,253.63,253.49,7.9789]
[1737217834469,31.35012404,253.68,253.57,31.35012404]
[1737217834659,31.35012404,253.8,253.67,31.35012404]
[1737217834854,0.42446198,253.86,253.68,0.59105229]
[1737217834855,31.35012404,253.83,253.68,0.59105229]
[1737217835055,0.48746198,253.82,253.54,0.59106891]
[1737217835249,3.9399,253.81,253.54,0.59106891]
[1737217835571,0.42446198,253.8,253.54,0.59106891]
[1737217835869,0.063,253.82,253.59,23.776884]
[1737217836061,0.063,253.82,253.8,31.35012404]
[1737217836248,0.063,253.82,253.81,0.59075092]
[1737217837150,0.063,253.82,253.79,0.59081794]
[1737217837842,0.063,253.82,253.8,31.35012404]
[1737217838166,0.063,253.82,253.81,0.59081519]
[1737217838668,4.36136198,254.01,253.81,0.59081519]
[1737217838669,0.42446198,254.01,253.85,20.0]
[1737217838853,0.42446198,254.14,254.02,20.0]
[1737217839055,31.35012404,254.24,254.05,23.776884]
[1737217839259,3.9311,254.38,254.07,23.776884]
[1737217839473,31.35012404,254.27,254.08,0.58990005]
[1737217839658,0.42446198,254.26,254.08,0.58990005]
[1737217839858,0.42446198,254.3,254.08,0.58990005]
[1737217840260,0.42446198,254.3,254.09,0.59024214]
[1737217840261,3.9325,254.29,254.09,0.59024214]
[1737217840458,0.42446198,254.28,254.07,0.59020138]
[1737217840652,31.35012404,254.25,254.17,20.0]
[1737217840856,31.35012404,254.29,254.18,31.81081268]
[1737217841065,31.35012404,254.21,254.1,31.35012404]
[1737217841265,31.35012404,254.19,254.11,0.59019015]
[1737217841476,31.35012404,254.19,254.09,0.59020043]
[1737217841659,31.35012404,254.21,254.1,31.35012404]
[1737217841866,0.42446198,254.2,254.11,0.59016676]
[1737217842661,31.35012404,254.19,254.11,0.59016676]
[1737217842967,31.35012404,254.19,254.09,0.59018559]
[1737217843154,31.35012404,254.21,254.1,31.35012404]
[1737217843352,31.35012404,254.17,254.07,0.59016465]
[1737217843573,31.35012404,254.18,254.07,0.59016465]
[1737217844186,31.35012404,254.2,254.09,31.35012404]
[1737217844473,31.35012404,254.24,254.13,31.35012404]
[1737217844663,31.35012404,254.24,254.14,0.59006863]
[1737217844974,3.9311,254.31,254.23,31.35012404]
[1737217845180,0.42446198,254.47,254.32,20.0]
[1737217845361,31.35012404,254.48,254.37,31.35012404]
[1737217845551,31.35012404,254.48,254.33,0.58965521]
[1737217845552,0.063,254.58,254.45,31.35012404]
[1737217845751,0.063,254.58,254.38,0.5893604]
[1737217845752,31.35012404,254.46,254.38,0.5893604]
[1737217845951,0.42446198,254.56,254.36,0.58956246]
[1737217846293,0.58956244,254.36,254.2,0.58957037]
[1737217846448,0.58956244,254.36,254.29,31.35012404]
[1737217846768,0.58956244,254.36,254.35,20.0]
[1737217846976,0.58956244,254.36,254.35,51.35012404]
[1737217847170,0.58956244,254.36,254.19,8.2456]
[1737217847171,0.58956244,254.36,254.33,31.35012404]
[1737217847473,0.58956244,254.36,254.34,0.58967211]
[1737217847656,0.58956244,254.36,254.31,31.35012404]
[1737217847657,0.58956244,254.36,254.32,0.58963459]
[1737217847972,0.58956244,254.36,254.27,31.35012404]
[1737217848161,0.58956244,254.36,254.2,0.58963339]
[1737217848162,31.35012404,254.28,254.2,0.58979145]
[1737217848356,31.35012404,254.26,254.21,0.59001537]
[1737217848549,31.35012404,254.22,254.14,0.58992493]
[1737217848752,31.35012404,254.28,254.05,0.59009381]
[1737217848753,31.35012404,254.16,254.05,0.59009381]
[1737217849053,0.42446198,254.25,254.0,0.59026692]
[1737217849254,0.58956244,254.36,254.02,23.9489]
[1737217849455,0.42446198,254.61,254.17,19.7618]
[1737217849668,0.42446198,254.6,254.18,17.01576184]
[1737217849878,31.35012404,254.61,254.5,31.35012404]
[1737217850203,219.2,254.79,254.28,31.35012404]
[1737217850204,31.35012404,254.55,254.45,31.35012404]
[1737217850353,31.35012404,254.55,254.28,31.35012404]
[1737217850354,31.35012404,254.51,254.41,31.35012404]
[1737217850555,0.42446198,254.5,254.41,31.35012404]
[1737217850862,31.35012404,254.49,254.39,31.35012404]
[1737217851063,31.35012404,254.4,254.3,31.35012404]
[1737217851252,20.0,254.49,254.24,31.35012404]
[1737217851253,31.35012404,254.35,254.24,31.35012404]
[1737217851453,0.42446198,254.34,254.24,31.35012404]
[1737217851655,0.42446198,254.34,254.25,0.5898944]
[1737217852273,31.35012404,254.33,254.22,31.35012404]
[1737217852481,0.42446198,254.32,254.24,31.35012404]
[1737217852668,31.35012404,254.33,254.22,31.35012404]
[1737217852973,42.48,254.49,254.17,7.6229]
[1737217852974,0.42446198,254.32,254.28,31.35012404]
[1737217853271,31.35012404,254.33,254.18,0.58989058]
[1737217853475,0.42446198,254.53,254.18,0.58989058]
[1737217853679,13.7491,254.56,254.18,0.58989058]
[1737217853680,13.67356198,254.56,254.18,0.58989058]
[1737217853973,31.35012404,254.43,254.32,31.35012404]
[1737217854173,31.35012404,254.41,254.3,31.35012404]
[1737217854355,31.35012404,254.35,254.24,31.35012404]
[1737217854552,31.35012404,254.37,254.26,31.35012404]
[1737217854769,31.35012404,254.52,254.35,31.35012404]
[1737217855074,3.9281,254.57,254.36,0.58945995]
[1737217855276,3.9281,254.57,254.29,0.03]
[1737217855668,23.776884,254.56,254.29,0.03]
[1737217855867,20.0,254.45,254.29,0.03]
[1737217856071,23.776884,254.52,254.29,0.03]
[1737217856072,23.776884,254.3,254.29,0.03]
[1737217856462,31.35012404,254.3,254.29,0.03]
[1737217856663,31.35012404,254.35,254.29,0.03]
[1737217856961,31.35012404,254.33,254.29,0.03]
[1737217857160,31.35012404,254.31,254.29,0.03]
[1737217857578,31.35012404,254.33,254.29,0.03]
[1737217857884,31.35012404,254.35,254.29,0.03]
[1737217858056,31.35012404,254.31,254.29,0.03]
[1737217858256,55.12700804,254.3,254.29,0.03]
[1737217858479,55.12700804,254.3,254.09,31.35012404]
[1737217858681,31.35012404,254.2,254.1,0.59023382]
[1737217858879,31.35012404,254.21,254.1,31.35012404]
[1737217859268,31.35012404,254.19,254.1,31.35012404]
[1737217859471,31.35012404,254.19,254.08,31.35012404]
[1737217859871,31.35012404,254.23,254.12,31.35012404]
[1737217860066,31.35012404,254.27,254.16,31.35012404]
[1737217860272,31.35012404,254.25,254.14,31.35012404]
[1737217860473,31.35012404,254.19,254.1,31.35012404]
[1737217860663,31.35012404,254.28,253.93,12.1389]
[1737217860664,31.35012404,254.11,254.0,31.35012404]
[1737217860859,23.776884,254.16,253.99,31.35012404]
[1737217861078,31.35012404,254.07,253.96,31.35012404]
[1737217861459,31.35012404,254.11,253.99,31.35012404]
[1737217861770,31.35012404,254.07,253.97,31.35012404]
[1737217861981,43.16012404,254.15,253.88,31.35012404]
[1737217861982,31.35012404,253.99,253.88,31.35012404]
[1737217862172,31.35012404,254.03,253.94,31.35012404]
[1737217862374,13.7702,254.17,253.95,0.59057812]
[1737217862561,31.35012404,254.08,253.98,31.35012404]
[1737217862878,3.9323,254.3,253.99,0.59060412]
[1737217863074,3.9323,254.3,254.01,20.0]
[1737217863282,3.9323,254.3,254.02,0.59016773]
[1737217863582,3.9311,254.38,254.09,20.0]
[1737217863774,31.35012404,254.39,254.27,31.35012404]
[1737217863982,31.35012404,254.53,254.38,31.35012404]
[1737217864175,86.83572404,254.67,254.48,31.35012404]
[1737217864176,31.35012404,254.59,254.48,31.35012404]
[1737217864379,0.063,254.63,254.52,31.35012404]
[1737217864590,0.063,254.63,254.44,20.0]
[1737217864771,0.063,254.63,254.53,20.0]
[1737217864969,0.063,254.63,254.58,20.0]
[1737217865173,3.9231,254.9,254.59,0.58882016]
[1737217865371,0.063,254.93,254.6,7.6229]
[1737217865564,0.063,254.93,254.61,0.58871762]
[1737217865779,31.35012404,254.9,254.79,31.35012404]
[1737217865984,31.35012404,254.89,254.68,0.58862173]
[1737217866191,0.063,254.93,254.84,31.35012404]
[1737217866369,0.063,254.93,254.86,31.35012404]
[1737217866670,0.063,254.93,254.78,31.35012404]
[1737217866671,31.35012404,254.9,254.78,31.35012404]
[1737217866864,31.35012404,254.84,254.74,31.35012404]
[1737217867069,31.35012404,254.75,254.66,31.35012404]
[1737217867263,3.9227,254.92,254.53,12.1389]
[1737217867264,31.35012404,254.79,254.7,31.35012404]
[1737217867466,13.7296,254.92,254.53,12.1389]
[1737217867467,31.35012404,254.77,254.61,0.58884277]
[1737217867668,23.776884,254.72,254.62,31.35012404]
[1737217867878,23.776884,254.72,254.45,7.6229]
[1737217867879,31.35012404,254.69,254.58,31.35012404]
[1737217868082,31.35012404,254.72,254.6,31.35012404]
[1737217868280,31.35012404,254.74,254.64,31.35012404]
[1737217868488,42.46,254.91,254.45,7.6229]
[1737217868489,31.35012404,254.7,254.55,0.5890228]
[1737217868682,31.35012404,254.68,254.57,31.35012404]
[1737217869072,31.35012404,254.66,254.55,31.35012404]
[1737217869273,31.35012404,254.7,254.61,31.35012404]
[1737217869495,31.35012404,254.66,254.55,31.35012404]
[1737217869705,31.35012404,254.63,254.52,31.35012404]
[1737217869871,31.35012404,254.67,254.58,31.35012404]
[1737217870180,31.35012404,254.67,254.45,7.6229]
[1737217870181,31.35012404,254.69,254.6,31.35012404]
[1737217870378,31.35012404,254.65,254.56,31.35012404]
[1737217870585,31.35012404,254.63,254.52,31.35012404]
[1737217870899,31.35012404,254.7,254.59,31.35012404]
[1737217871067,31.35012404,254.7,254.45,7.6229]
[1737217871068,31.35012404,254.73,254.63,31.35012404]
[1737217871268,31.35012404,254.69,254.59,31.35012404]
[1737217871471,31.35012404,254.69,254.6,0.58901794]
[1737217871687,31.35012404,254.71,254.61,31.35012404]
[1737217871890,31.35012404,254.71,254.62,0.5889217]
[1737217872100,31.35012404,254.67,254.57,31.35012404]
[1737217872273,31.35012404,254.63,254.51,31.35012404]
[1737217872474,31.35012404,254.6,254.52,0.58924521]
[1737217872673,31.35012404,254.67,254.5,0.58924751]
[1737217872674,31.35012404,254.59,254.5,0.58924751]
[1737217872874,31.35012404,254.65,254.55,31.35012404]
[1737217873096,31.35012404,254.61,254.51,31.35012404]
[1737217873271,31.35012404,254.61,254.52,0.58920605]
[1737217873474,31.35012404,254.63,254.53,31.35012404]
[1737217873780,20.0,254.76,254.54,0.58917891]
[1737217873987,31.35012404,254.62,254.54,0.58917891]
[1737217874287,3.9856,254.93,254.64,20.0]
[1737217874500,31.35012404,254.82,254.7,31.35012404]
[1737217874684,31.35012404,254.78,254.66,31.35012404]
[1737217874877,31.35012404,254.73,254.67,0.58888147]
[1737217875077,31.35012404,254.75,254.65,0.58890021]
[1737217875280,3.9856,254.93,254.65,0.58890021]
[1737217875486,31.35012404,254.89,254.78,31.35012404]
[1737217875686,31.35012404,254.89,254.79,0.5885713]
[1737217876286,0.063,254.93,254.8,31.35012404]
[1737217876583,0.063,254.93,254.82,31.35012404]
[1737217876785,0.063,254.93,254.67,31.35012404]
[1737217876786,31.41312404,254.93,254.84,31.35012404]
[1737217876988,31.41312404,254.93,254.85,0.5883921]
[1737217877201,31.41312404,254.93,254.75,7.6229]
[1737217877202,31.41312404,254.93,254.82,31.35012404]
[1737217877394,31.35012404,254.89,254.83,0.58851015]
[1737217877598,31.35012404,254.91,254.81,0.58847759]
[1737217877982,31.35012404,254.89,254.81,0.58847759]
[1737217878380,31.35012404,254.87,254.81,0.58854916]
[1737217878696,3.9857,254.93,254.76,31.35012404]
[1737217878697,31.35012404,254.85,254.76,31.35012404]
[1737217878904,31.35012404,254.85,254.77,0.58864926]
[1737217879117,31.35012404,254.87,254.79,20.0]
[1737217879293,31.35012404,254.89,254.8,0.58850114]
[1737217880115,31.35012404,254.92,254.82,31.35012404]
[1737217880406,31.35012404,254.88,254.78,31.35012404]
[1737217880582,31.35012404,254.88,254.79,0.58866539]
[1737217880787,3.9857,254.93,254.8,31.35012404]
[1737217880788,31.35012404,254.9,254.8,31.35012404]
[1737217881004,31.35012404,254.92,254.82,31.35012404]
[1737217881211,31.35012404,254.91,254.83,0.5885023]
[1737217881510,0.063,254.93,254.92,20.0]
[1737217881685,0.063,255.03,254.92,20.0]
[1737217881686,0.063,255.03,254.92,20.58821871]
[1737217881886,0.063,255.03,254.93,0.58814044]
[1737217882108,0.063,255.03,254.94,31.35012404]
[1737217882288,0.063,255.03,254.95,0.58826137]
[1737217882489,31.35012404,255.02,254.93,31.35012404]
[1737217882707,0.063,255.03,254.97,31.35012404]
[1737217882899,0.063,255.03,254.99,31.35012404]
[1737217883789,0.063,255.03,254.93,31.35012404]
[1737217883790,0.063,255.03,255.01,31.35012404]
[1737217883983,0.063,255.03,254.99,31.35012404]
[1737217884292,0.063,255.03,255.02,31.35012404]
[1737217885605,0.063,255.03,255.0,31.35012404]
[1737217885810,0.063,255.03,255.02,31.35012404]
[1737217887206,0.063,255.16,255.05,20.0]
[1737217887516,0.063,255.16,255.15,31.35012404]
[1737217889098,31.35012404,255.33,255.18,20.0]
[1737217889297,31.41312404,255.35,255.25,31.35012404]
[1737217889506,0.063,255.35,255.25,31.35012404]
[1737217889701,31.41312404,255.35,255.19,0.58762455]
[1737217889912,31.35012404,255.33,255.23,31.35012404]
[1737217890093,3.9172,255.28,255.07,0.58768661]
[1737217890293,31.35012404,255.27,255.17,31.35012404]
[1737217890494,31.35012404,255.23,255.13,31.35012404]
[1737217890805,31.35012404,255.26,255.15,31.35012404]
[1737217891013,31.35012404,255.3,255.21,31.35012404]
[1737217891209,31.35012404,255.32,255.23,31.35012404]
[1737217891413,0.063,255.35,255.28,31.35012404]
[1737217891793,0.063,255.41,255.33,31.35012404]
[1737217892010,0.063,255.41,255.36,31.35012404]
[1737217892615,0.063,255.41,255.38,31.35012404]
[1737217892814,0.063,255.41,255.4,31.35012404]
[1737217893032,0.063,255.41,255.38,31.35012404]
[1737217893314,0.063,255.41,255.4,31.35012404]
[1737217894209,31.35012404,255.59,255.43,20.0]
[1737217894411,31.35012404,255.59,255.48,31.35012404]
[1737217894709,31.35012404,255.57,255.46,31.35012404]
[1737217894905,31.35012404,255.57,255.47,0.58714055]
[1737217895111,31.35012404,255.55,255.44,31.35012404]
[1737217895311,31.35012404,255.48,255.37,31.35012404]
[1737217895510,31.35012404,255.48,255.38,0.58722676]
[1737217895711,31.35012404,255.39,255.27,31.35012404]
[1737217895899,31.35012404,255.45,255.33,31.35012404]
[1737217896100,31.35012404,255.43,255.34,0.58728663]
[1737217896312,31.35012404,255.39,255.27,31.35012404]
[1737217896495,31.35012404,255.39,255.28,0.58750529]
[1737217896697,31.35012404,255.45,255.24,0.58746678]
[1737217896698,31.35012404,255.33,255.24,0.58746678]
[1737217897001,23.776884,255.44,255.27,31.35012404]
[1737217897002,31.35012404,255.38,255.27,31.35012404]
[1737217897301,31.35012404,255.38,255.28,0.58747672]
[1737217897628,0.5,255.37,255.27,31.35012404]
[1737217897814,31.35012404,255.36,255.25,31.35012404]
[1737217898014,31.35012404,255.32,255.21,31.35012404]
[1737217898333,31.35012404,255.3,255.22,0.58762202]
[1737217898629,31.35012404,255.32,255.23,31.93776336]
[1737217899324,0.5,255.42,255.31,31.35012404]
[1737217899521,31.35012404,255.58,255.32,0.58715938]
[1737217899727,31.35012404,255.4,255.29,31.35012404]
[1737217900027,31.35012404,255.31,255.2,0.58744243]
[1737217900247,0.5,255.3,255.14,8.0149]
[1737217900527,0.5,255.3,255.11,31.35012404]
[1737217900528,31.35012404,255.21,255.11,31.35012404]
[1737217900728,31.35012404,255.25,255.15,31.35012404]
[1737217900919,31.35012404,255.17,255.07,0.46942876]
[1737217901228,31.35012404,255.22,255.12,20.0]
[1737217901406,0.73478691,255.21,255.12,20.46957382]
[1737217901602,31.35012404,255.28,255.18,20.0]
[1737217901813,0.73471793,255.27,255.18,0.46943586]
[1737217902120,31.35012404,255.26,255.14,31.35012404]
[1737217902311,31.35012404,255.24,255.15,0.46947014]
[1737217902618,31.35012404,255.16,255.07,0.46944787]
[1737217902819,31.35012404,255.16,255.08,0.46994984]
[1737217902998,31.35012404,255.1,254.98,0.46979032]
[1737217903202,31.35012404,255.0,254.88,0.47043462]
[1737217903521,20.0,254.87,254.82,0.03]
[1737217903827,0.73602438,254.86,254.63,0.50199175]
[1737217904412,4.65855919,254.94,254.72,31.35012404]
[1737217904718,4.65855919,254.94,254.63,0.50199175]
[1737217904719,31.35012404,255.01,254.9,31.35012404]
[1737217904933,0.73607708,255.03,254.8,31.35012404]
[1737217904934,0.73547182,255.0,254.94,31.35012404]
[1737217905108,31.35012404,255.03,254.92,31.35012404]
[1737217905427,31.35012404,254.98,254.86,31.35012404]
[1737217905604,0.7355058,254.97,254.88,31.35012404]
[1737217905803,31.35012404,255.01,254.93,20.0]
[1737217906027,31.35012404,255.06,254.95,31.35012404]
[1737217906203,0.73529679,255.14,255.02,20.0]
[1737217906522,31.35012404,255.13,255.03,31.82018845]
[1737217906730,31.35012404,255.11,254.99,31.35012404]
[1737217906926,0.73511642,255.1,255.01,31.35012404]
[1737217907114,31.35012404,255.13,255.03,31.35012404]
[1737217907317,31.35012404,255.13,254.93,31.35012404]
[1737217907318,31.35012404,255.11,255.01,31.35012404]
[1737217907529,0.73514669,255.1,254.99,31.35012404]
[1737217907737,31.35012404,255.07,254.95,31.35012404]
[1737217907939,0.73533429,255.06,254.95,31.35012404]
[1737217908120,0.73533429,255.06,254.85,20.0007]
[1737217908121,31.35012404,255.09,254.99,31.35012404]
[1737217908312,0.73515635,255.08,255.02,20.0]
[1737217908507,0.73517317,255.1,255.02,20.0]
[1737217908713,0.73517317,255.16,255.04,51.35012404]
[1737217908933,31.35012404,255.12,255.05,20.0]
[1737217909230,0.7351317,255.11,255.05,20.0]
[1737217909424,0.7351317,255.11,255.02,31.35012404]
[1737217909631,31.35012404,255.08,254.97,31.35012404]
[1737217909934,31.35012404,255.08,255.0,20.0]
[1737217910244,31.35012404,255.12,255.01,31.82039962]
[1737217910415,31.35012404,255.1,255.01,31.82039962]
[1737217910610,31.35012404,255.19,255.04,20.0]
[1737217910815,31.35012404,255.12,255.01,31.82039962]
[1737217911015,0.73506298,255.11,255.03,31.35012404]
[1737217911222,0.73506074,255.11,255.01,31.82024552]
[1737217911420,31.35012404,255.03,254.94,0.4702206]
[1737217911737,0.73537991,255.02,254.91,31.35012404]
[1737217911945,0.73537991,255.02,254.93,31.35012404]
[1737217912229,31.35012404,255.01,254.89,31.35012404]
[1737217912437,0.73540067,255.0,254.91,31.35012404]
[1737217912615,31.35012404,254.92,254.81,31.35012404]
[1737217912810,32.08579461,254.98,254.88,31.35012404]
[1737217913035,31.35012404,255.02,254.92,31.35012404]
[1737217913238,31.35012404,255.07,254.98,31.35012404]
[1737217913524,31.35012404,255.07,254.8,43.16012404]
[1737217913525,31.35012404,255.09,255.0,31.35012404]
[1737217913728,31.35012404,255.05,254.96,31.35012404]
[1737217914141,31.35012404,255.33,255.08,20.0]
[1737217914428,0.73460289,255.32,255.23,31.35012404]
[1737217914631,0.73460289,255.32,255.21,31.35012404]
[1737217914829,31.35012404,255.31,255.21,31.35012404]
[1737217915030,0.7345343,255.3,255.21,31.35012404]
[1737217915540,0.7345343,255.3,255.19,31.35012404]
[1737217915721,0.7345343,255.3,255.06,31.35012404]
[1737217915722,0.7345343,255.3,255.23,31.35012404]
[1737217915924,31.35012404,255.29,255.19,31.35012404]
[1737217916228,31.35012404,255.33,255.23,31.35012404]
[1737217916533,0.7345141,255.32,255.23,31.35012404]
[1737217916736,31.35012404,255.31,255.21,31.35012404]
[1737217916925,31.35012404,255.28,255.18,31.35012404]
[1737217917332,0.73459372,255.27,255.11,23.776884]
[1737217917524,0.73462967,255.29,255.2,31.35012404]
[1737217917716,31.35012404,255.34,255.24,31.35012404]
[1737217918030,10.5217305,255.44,255.26,31.35012404]
[1737217918031,0.73447406,255.33,255.26,31.35012404]
[1737217918225,31.35012404,255.34,255.27,20.0]
[1737217918411,31.35012404,255.38,255.31,20.0]
[1737217918815,31.35012404,255.4,255.31,20.0]
[1737217919029,31.35012404,255.4,255.3,31.35012404]
[1737217919030,0.73431435,255.39,255.3,31.35012404]
[1737217919234,0.73431124,255.39,255.32,31.35012404]
[1737217919533,0.73429605,255.41,255.33,31.35012404]
[1737217919728,31.35012404,255.44,255.33,31.35012404]
[1737217919928,0.7342495,255.51,255.38,20.0]
[1737217920131,31.35012404,255.47,255.37,31.35012404]
[1737217920316,31.35012404,255.38,255.09,20.847]
[1737217920517,31.35012404,255.45,254.79,5.72957726]
[1737217920518,31.35012404,255.23,254.94,20.847]
[1737217920719,31.35012404,255.21,255.11,31.35012404]
[1737217920923,0.73491609,255.4,254.95,4.00646746]
[1737217921133,31.35012404,255.33,255.23,31.35012404]
[1737217921336,0.73469105,255.32,254.96,11.81]
[1737217921533,20.0,255.37,255.01,20.0]
[1737217921835,0.73462161,255.36,255.15,20.0]
[1737217922150,3.9154,255.4,255.19,20.0]
[1737217922335,3.9154,255.4,254.94,22.34304005]
[1737217922336,31.35012404,255.29,255.18,31.35012404]
[1737217922643,0.73451774,255.28,255.18,31.35012404]
[1737217922839,31.35012404,255.31,255.23,20.0]
[1737217923053,0.73453191,255.3,255.2,31.35012404]
[1737217923637,31.35012404,255.29,255.18,31.35012404]
[1737217923822,0.73464241,255.28,255.2,31.35012404]
[1737217924143,0.73460756,255.28,255.2,31.35012404]
[1737217924350,31.35012404,255.29,255.18,31.35012404]
[1737217924638,31.35012404,255.22,254.94,20.847]
[1737217924848,31.35012404,255.22,255.1,31.35012404]
[1737217924849,0.73499157,255.21,255.1,31.35012404]
[1737217925348,0.7348867,255.28,255.2,31.35012404]
[1737217925645,0.7348867,255.28,255.18,31.35012404]
[1737217925827,0.7348867,255.28,255.2,31.35012404]
[1737217926023,32.08473051,255.43,255.3,20.0]
[1737217926234,31.35012404,255.39,255.3,20.0]
[1737217926435,31.35012404,255.35,255.25,31.35012404]
[1737217926632,0.73450328,255.34,255.25,31.35012404]
[1737217926835,31.35012404,255.33,255.23,31.35012404]
[1737217927141,31.35012404,255.29,255.19,31.35012404]
[1737217927346,0.7346209,255.28,255.19,31.35012404]
[1737217927540,0.7346209,255.28,255.22,20.0]
[1737217928236,0.7346209,255.28,254.94,12.6354]
[1737217928237,31.35012404,255.24,254.94,12.6354]
[1737217928448,31.35012404,255.2,254.94,12.6354]
[1737217928632,0.73497806,255.19,255.1,31.35012404]
[1737217929326,0.73497806,255.19,255.12,31.35012404]
[1737217929527,31.35012404,255.18,255.08,31.35012404]
[1737217929727,0.73505026,255.17,255.1,31.35012404]
[1737217929923,31.35012404,255.16,255.06,31.35012404]
[1737217930141,31.35012404,255.14,255.04,31.35012404]
[1737217930342,31.35012404,255.12,255.05,3.9207]
[1737217930525,0.73510058,255.11,255.05,3.9207]
[1737217930733,0.73510058,255.11,254.99,0.03]
[1737217930734,31.35012404,255.06,254.99,0.03]
[1737217930940,62.70024808,255.0,254.82,0.03]
[1737217931249,31.35012404,254.84,254.69,3.9263]
[1737217931452,0.73599421,254.92,254.73,3.9556]
[1737217931750,0.73566497,254.99,254.73,13.7699]
[1737217931946,0.73558351,255.05,254.73,13.7699]
[1737217932128,23.776884,255.04,254.73,9.8443]
[1737217932327,20.0,255.01,254.73,9.8443]
[1737217932528,31.35012404,254.91,254.84,20.0]
[1737217932727,31.35012404,254.89,254.79,31.35012404]
[1737217932927,31.35012404,254.87,254.77,31.35012404]
[1737217933129,31.35012404,254.87,254.73,9.8443]
[1737217933130,31.35012404,254.85,254.75,31.35012404]
[1737217933431,31.35012404,254.89,254.79,31.35012404]
[1737217933935,31.35012404,254.91,254.81,31.35012404]
[1737217934332,31.35012404,254.89,254.84,20.0]
[1737217935152,31.35012404,254.89,254.82,23.9243]
[1737217935356,31.35012404,254.93,254.88,20.0]
[1737217935652,31.35012404,254.89,254.82,3.9243]
[1737217935857,31.35012404,254.84,254.77,3.9251]
[1737217936441,31.35012404,254.82,254.77,3.9251]
[1737217936640,31.35012404,254.8,254.77,3.9251]
[1737217936951,31.35012404,254.78,254.74,3.9254]
[1737217937147,31.35012404,254.8,254.74,3.9254]
[1737217937529,31.35012404,254.78,254.74,3.9254]
[1737217937852,31.35012404,254.78,254.63,0.03]
[1737217937853,23.776884,254.75,254.63,0.03]
[1737217938053,31.35012404,254.64,254.63,0.03]
[1737217938273,20.0,254.61,254.33,9.8297]
[1737217938555,31.35012404,254.5,254.42,3.9304]
[1737217938729,0.73683835,254.58,254.33,3.9318]
[1737217938934,31.35012404,254.55,254.45,31.35012404]
[1737217939128,31.35012404,254.59,254.49,31.35012404]
[1737217939326,31.35012404,254.59,254.33,33.4209]
[1737217939327,31.35012404,254.57,254.47,31.35012404]
[1737217939536,31.35012404,254.57,254.33,33.4209]
[1737217939537,0.73662602,254.56,254.33,33.4209]
[1737217939749,31.35012404,254.56,254.46,31.35012404]
[1737217939932,0.7365647,254.66,254.33,33.4209]
[1737217940134,0.73635558,254.68,254.33,33.4209]
[1737217940452,0.73635558,254.68,254.34,11.81]
[1737217940650,0.73645081,254.78,254.46,23.776884]
[1737217940856,0.73629999,254.82,254.49,31.81]
[1737217941041,0.73629999,254.82,254.49,20.0]
[1737217941042,3.9244,254.81,254.49,20.0]
[1737217941240,3.9244,254.81,254.61,31.35012404]
[1737217941241,31.35012404,254.73,254.61,31.35012404]
[1737217941442,31.35012404,254.68,254.59,31.35012404]
[1737217941644,31.35012404,254.61,254.49,31.35012404]
[1737217941855,0.7367059,254.65,254.57,31.35012404]
[1737217942158,32.08682994,254.65,254.55,31.35012404]
[1737217942452,32.08682994,254.65,254.56,3.9283]
[1737217942840,0.7367059,254.65,254.57,31.35012404]
[1737217943033,0.7364604,254.64,254.55,31.35012404]
[1737217943429,31.35012404,254.59,254.5,3.9292]
[1737217943745,0.73670622,254.58,254.5,3.9292]
[1737217944065,0.73670622,254.58,254.54,20.0]
[1737217944238,0.73663067,254.6,254.54,20.0]
[1737217944434,31.35012404,254.59,254.49,35.27932404]
[1737217944635,0.73669607,254.58,254.53,31.35012404]
[1737217944853,31.35012404,254.56,254.34,3.9317]
[1737217945046,31.35012404,254.47,254.36,31.35012404]
[1737217945248,0.73697939,254.46,254.38,31.35012404]
[1737217945450,31.35012404,254.48,254.38,31.35012404]
[1737217945745,13.7464,254.61,254.34,13.761]
[1737217945746,0.73696526,254.47,254.45,20.0]
[1737217945955,0.73693644,254.49,254.42,31.35012404]
[1737217946132,0.7368186,254.51,254.42,31.35012404]
[1737217946546,3.9275,254.61,254.45,3.93]
[1737217946547,31.35012404,254.56,254.45,3.93]
[1737217946858,31.35012404,254.52,254.42,31.35012404]
[1737217947038,0.7369018,254.51,254.42,35.28052404]
[1737217947241,0.7369018,254.51,254.42,3.9304]
[1737217947455,31.35012404,254.46,254.36,31.35012404]
[1737217947794,0.73708204,254.45,254.43,20.0]
[1737217947939,31.35012404,254.44,254.34,35.28182404]
[1737217948137,31.35012404,254.36,254.33,0.03]
[1737217948336,0.73740733,254.35,254.33,0.03]